{"text_format":"1","workbook":"xlsx","n_sheets":3,"sheets":["Calcul","Détail des calculs - STD","Détail des calculs - PERF"],"not_rendered":{"charts":0,"images":2,"macros":1,"external_links":0,"defined_names":50,"comments":0,"pivot_tables":0},"unopened":[],"bounds":{"document_bytes":16777216,"sheet_cells":100000,"rows_first":2000,"rows_last":500,"rows_between":2000,"halvings":0,"cell_chars":16384,"cell_head_chars":4096},"cells_cut":0,"cells_raw":0,"read":"whole","date_system":"1900"}

{"sheet":"Calcul","index":0,"n_rows":189,"n_cols":25,"rows_kept":189,"cut":false,"hidden":false,"merged":[[185,13,185,14],[185,0,185,5],[84,0,84,5],[188,0,188,5],[179,0,179,5],[173,3,173,4],[129,0,129,5],[77,0,77,5],[25,0,25,5],[48,0,48,5],[85,0,85,5],[0,0,0,5],[1,0,1,5],[2,0,2,5],[3,0,3,5],[22,0,22,1],[7,0,7,5],[13,0,13,1],[16,0,16,1],[19,0,19,1],[43,1,43,2],[39,1,39,2],[41,1,41,2]]}
[{"$f":"IF($H$6=1,U1,V1)","v":"Herzlich willkommen beim Online-Rechner des Kantons Wallis! "},null,null,null,null,null,null,null,null,null,null,null,null,null,null,null,null,null,null,null,"Bienvenue dans le calculateur en ligne des bourses et prêts d’études du canton du Valais. ","Herzlich willkommen beim Online-Rechner des Kantons Wallis! "]
[{"$f":"IF($H$6=1,U2,V2)","v":"Dieses Tool zur Berechnung Ihres Stipendien- oder Darlehensanspruchs wird Ihnen von der Sektion Stipendien und Ausbildungsdarlehen zur Verfügung gestellt."},null,null,null,null,null,null,null,null,null,null,null,null,null,null,null,null,null,null,null,"Ce calculateur est mis à disposition par la section des bourses et prêts d’études.","Dieses Tool zur Berechnung Ihres Stipendien- oder Darlehensanspruchs wird Ihnen von der Sektion Stipendien und Ausbildungsdarlehen zur Verfügung gestellt."]
[{"$f":"IF($H$6=1,U3,V3)","v":"Bitte beachten Sie, dass das errechnete Ergebnis unverbindlich ist und lediglich als Anhaltspunkt dient.\nDa sich die zuständige Behörde bei der Berechnung der Stipendien und Ausbildungsdarlehen auf die vom Antragsteller eingereichten Dokumente (wie Steuerverfügung der Eltern, Einkommen des Antragstellers, Anzahl unterhaltsberechtigter oder sich in Ausbildung befindlicher Kinder) stützt, hat das Ergebnis des Online-Rechners weder für die Kantonsverwaltung noch für die Kommission für Ausbildungsbeiträge eine Verpflichtung zur Folge."},null,null,null,null,null,null,null,null,null,null,null,null,null,null,null,null,null,null,null,"Le calcul des bourses et/ou prêt s d’études vous est présenté à titre indicatif !\nIl n'engage en aucun cas l'Administration cantonale, ni la Commission des Bourses et des Prêts d'études, car les bourses et prêts d’études sont calculés par l'autorité compétente sur la base des documents à fournir par le requérant, notamment la taxation définitive des parents, les gains du requérant, le nombre d’enfants à charge et en formation, etc...","Bitte beachten Sie, dass das errechnete Ergebnis unverbindlich ist und lediglich als Anhaltspunkt dient.\nDa sich die zuständige Behörde bei der Berechnung der Stipendien und Ausbildungsdarlehen auf die vom Antragsteller eingereichten Dokumente (wie Steuerverfügung der Eltern, Einkommen des Antragstellers, Anzahl unterhaltsberechtigter oder sich in Ausbildung befindlicher Kinder) stützt, hat das Ergebnis des Online-Rechners weder für die Kantonsverwaltung noch für die Kommission für Ausbildungsbeiträge eine Verpflichtung zur Folge."]
[{"$f":"IF($H$6=1,U4,V4)","v":"Das Resultat ist eine Schätzung, die sich auf die von Ihnen gemachten Angaben stützt. Ihre persönliche Situation kann vom Online-Rechner leider nicht berücksichtigt werden.\n\nUm die Berechnung durchzuführen, benötigen Sie die Steuerveranlagung Ihrer Eltern sowie das Einkommen, das Sie während des Schuljahrs allenfalls erarbeitet haben. Die Angaben sind jeweils für ein Ausbildungsjahr anzugeben.\nAuch kompliziertere Fälle, wie die Aufteilung von Kindern bei getrennt lebenden Eltern mit gemeinsamem Sorgerecht oder die Bestimmung einer teilweisen Unabhängigkeit von den elterlichen Leistungen, können vom Rechner bearbeitet werden. Eine unkorrekte Auslegung dieser Informationen Ihrerseits kann zu einem falschen Ergebnis führen.\n\nAuf Anfrage teilt Ihnen die Sektion Stipendien und Ausbildungsdarlehen gerne die weiteren Bedingungen für die Gewährung eines Stipendiums (Anerkennung der Ausbildung, Anerkennung der Bildungseinrichtung, Zuständigkeit des Kantons, ...) mit."},null,null,null,null,null,null,null,null,null,null,null,null,null,null,null,null,null,null,null,"Le résultat du calcul correspond à une estimation basée sur les données que vous allez insérer. Des éléments de votre situation personnelle peuvent ne pas être pris en considération par le calculateur.\n\nPour compléter le calcul, vous avez besoin de la taxation fiscale de vos parents et du montant de vos gains durant l’année scolaire. Les données sont à indiquer pour une année de formation complète.\nCertaines situations plus complexes, comme celles qui concernent la répartition des enfants dans les ménages lorsque les parents sont séparés, notamment lors de garde partagée ainsi que la détermination de l’indépendance partielle ou non des prestations parentales ont été intégrées au calculateur. Toutefois, elles peuvent être sujette à une interprétation erronée de votre part et conduire à un résultat incorrect.\n\nPour d’autres conditions à remplir pour l’octroi d’une bourse (reconnaissance de la formation, reconnaissance de l’établissement de formation, compétence du canton, …), veuillez contacter la section des bourses et prêts d'études.\n","Das Resultat ist eine Schätzung, die sich auf die von Ihnen gemachten Angaben stützt. Ihre persönliche Situation kann vom Online-Rechner leider nicht berücksichtigt werden.\n\nUm die Berechnung durchzuführen, benötigen Sie die Steuerveranlagung Ihrer Eltern sowie das Einkommen, das Sie während des Schuljahrs allenfalls erarbeitet haben. Die Angaben sind jeweils für ein Ausbildungsjahr anzugeben.\nAuch kompliziertere Fälle, wie die Aufteilung von Kindern bei getrennt lebenden Eltern mit gemeinsamem Sorgerecht oder die Bestimmung einer teilweisen Unabhängigkeit von den elterlichen Leistungen, können vom Rechner bearbeitet werden. Eine unkorrekte Auslegung dieser Informationen Ihrerseits kann zu einem falschen Ergebnis führen.\n\nAuf Anfrage teilt Ihnen die Sektion Stipendien und Ausbildungsdarlehen gerne die weiteren Bedingungen für die Gewährung eines Stipendiums (Anerkennung der Ausbildung, Anerkennung der Bildungseinrichtung, Zuständigkeit des Kantons, ...) mit."]
[null,null,null,null,null,null,null,null,null,null,null,null,null,"Année calculateur",{"$f":"IF(MONTH(O10)>=6,YEAR(O10)&\"/\"& YEAR(O10)+1,YEAR(O10)-1&\"/\"&YEAR(O10))","v":"2020/2021"}]
[{"$f":"IF($H$6=1,U6,V6)","v":"Schuljahr"},{"$f":"O5","v":"2020/2021"},null,null,null,"DE",null,{"$f":"VLOOKUP(F6,N5:N6:O7,2,FALSE)","v":2},null,null,null,null,null,"FR",1,null,null,null,null,null,"Année de formation","Schuljahr"]
[null,null,null,null,null,null,null,null,null,null,null,null,null,"DE",2]
[{"$f":"IF($H$6=1,U8,V8)","v":"Vervollständigen Sie bitte alle nachfolgenden Felder in grau, orange und grün.\n - Bei den grauen Feldern wählen Sie bitte eine Option aus.\n - In die orangen Felder geben Sie bitte eine ganze Zahl ein."},{"$f":"IF($H$6=1,V8,V9)","v":" - Dans les cellules vertes, vous devez saisir du texte.\n - In die grünen Felder geben Sie bitte einen Text ein."},{"$f":"IF($H$6=1,V9,X8)","v":0},0,0,0,null,null,null,null,null,null,null,null,null,null,null,null,null,null,"Veuillez compléter toutes les cellules de couleurs grises, oranges et vertes ci-dessous !\n - Dans les cellules en gris, vous devez sélectionner une des valeurs présentes.\n - Dans les cellules oranges, vous devez saisir des nombres entiers.","Vervollständigen Sie bitte alle nachfolgenden Felder in grau, orange und grün.\n - Bei den grauen Feldern wählen Sie bitte eine Option aus.\n - In die orangen Felder geben Sie bitte eine ganze Zahl ein."]
[null,null,null,null,null,null,null,null,null,null,null,null,null,null,null,null,"FR","DE",null,null,null," - Dans les cellules vertes, vous devez saisir du texte.\n - In die grünen Felder geben Sie bitte einen Text ein."]
[null,null,null,null,null,null,null,null,null,null,null,null,null,"Aujourd'hui",{"$f":"TODAY()","v":"2020-06-23"}]
[{"$f":"IF($H$6=1,U11,V11)","v":"Ausbildung und Kostenkategorie"},null,null,null,null,null,null,null,null,null,null,null,null,"Année taxation",{"$f":"IF(MONTH(O10)>=6,YEAR(O10)-2,YEAR(O10)-3)","v":2018},null,null,null,null,null,"Formation et catégorie de frais","Ausbildung und Kostenkategorie"]
[]
[{"$f":"IF($H$6=1,U13,V13)","v":"Art der geplanten Ausbildung"},null,null,null,null,null,null,null,null,null,null,null,null,{"$f":"IF($H$6=1,Q13,R13)","v":"Besuch einer OS-Klasse in einer anderen Sprachregion oder einer Sport-Kunst-Ausbildungsstruktur "},1,null,"Fréquentation d'une classe du cycle d'orientation dans une autre région linguistique ou d'une structure sport-arts-formation","Besuch einer OS-Klasse in einer anderen Sprachregion oder einer Sport-Kunst-Ausbildungsstruktur ",null,null,"Type de formation envisagée","Art der geplanten Ausbildung"]
["Mittelschulausbildung (Kollegium, FMS, HMS, ...) ",null,null,null,null,null,null,{"$f":"VLOOKUP(A14,N13:O19,2,FALSE)","v":1},null,null,null,null,null,{"$f":"IF($H$6=1,Q14,R14)","v":"Vorbereitende Schule (Schule für Berufsvorbereitung, ...) "},1,null,"Ecoles préparatoires (écoles préprofessionnelles, …)","Vorbereitende Schule (Schule für Berufsvorbereitung, ...) "]
[null,null,null,null,null,null,null,null,null,null,null,null,null,"Berufslehre ",1,null,"Apprentissage","Berufslehre "]
[{"$f":"IF($H$6=1,U16,V16)","v":"Kostenkategorie"},null,null,null,null,null,null,null,null,null,null,null,null,"Mittelschulausbildung (Kollegium, FMS, HMS, ...) ",1,null,"Formation secondaire du deuxième degré (Collège, ECCG…)","Mittelschulausbildung (Kollegium, FMS, HMS, ...) ",null,null,"Catégorie de frais","Kostenkategorie"]
["Mittagessen auswärts",null,null,null,null,null,null,{"$f":"VLOOKUP(A17,N21:O24,2,FALSE)","v":2},null,null,null,null,null,"Tertiäre Ausbildung",2,null,"Formation tertiaire","Tertiäre Ausbildung"]
[null,null,null,null,null,null,null,null,null,null,null,null,null,"Fernstudium (Tertiärstufe) ",3,null,"Formation à distance (tertiaire)","Fernstudium (Tertiärstufe) "]
[{"$f":"IF($H$6=1,U19,V19)","v":"Art der Schule"},null,null,null,null,null,null,null,null,null,null,null,null,"Berufsbegleitende Weiterbildungen",4,null,"Perfectionnement en emploi","Berufsbegleitende Weiterbildungen",null,null,"Type d'école","Art der Schule"]
["Öffentliche Schule",null,null,null,null,null,null,{"$f":"VLOOKUP(A20,N26:O27,2,FALSE)","v":1}]
[null,null,null,null,null,null,null,null,null,null,null,null,null,{"$f":"IF($H$6=1,Q21,R21)","v":"Mittagessen zuhause"},1,null,"Repas de midi à domicile","Mittagessen zuhause"]
[{"$f":"IF($H$6=1,U22,V22)","v":"Anzahl Semester während dem Ausbildungsjahr"},null,null,null,null,null,null,null,null,null,null,null,null,"Mittagessen auswärts",2,null,"Repas de midi hors domicile","Mittagessen auswärts",null,null,"Nombre de semestres durant l'année de formation","Anzahl Semester während dem Ausbildungsjahr"]
[2,null,null,null,null,null,null,{"$f":"VLOOKUP(A23,N29:O30,2,FALSE)","v":2},null,null,null,null,null,"Unterkunft und Verpflegung ausserhalb der Familie im Kanton",3,null,"Pension et logement hors de la famille dans le canton","Unterkunft und Verpflegung ausserhalb der Familie im Kanton"]
[null,null,null,null,null,null,null,null,null,null,null,null,null,"Unterkunft und Verpflegung ausserhalb des Kantons",4,null,"Pension et logement  hors du canton","Unterkunft und Verpflegung ausserhalb des Kantons"]
[{"$f":"IF($H$6=1,U25,V25)","v":"Schulkosten"},0,null,null,null,null,null,null,null,null,null,null,null,null,null,null,null,null,null,null,"Ecolage","Schulkosten"]
[{"$f":"IF($H$6=1,U26,V26)","v":"Nur ausfüllen, wenn es sich um eine berufsbegleitende Weiterbildung handelt (alle mit dem Kurs verbundenen Kosten einschliessen) oder die Ausbildung von einer Privatschule angeboten wird (nur Schulgeld)."},0,0,0,0,0,null,null,null,null,null,null,null,{"$f":"IF($H$6=1,Q26,R26)","v":"Öffentliche Schule"},1,null,"Publique","Öffentliche Schule",null,null,"A compléter uniquement s'il s'agit d'un perfectionnement en emploi (Inclure tous les frais liés au cours) ou si la formation est suivie dans une école privée (uniquement les frais d'écolage)","Nur ausfüllen, wenn es sich um eine berufsbegleitende Weiterbildung handelt (alle mit dem Kurs verbundenen Kosten einschliessen) oder die Ausbildung von einer Privatschule angeboten wird (nur Schulgeld)."]
[null,null,null,null,null,null,null,null,null,null,null,null,null,"Private Schule ",2,null,"Privée","Private Schule "]
[]
["Frais admis",{"$f":"IF(H14<>4,IF(AND(H20=2,B25>6000),VLOOKUP(H14,N33:R37,H17+1,FALSE)+MIN((B25-6000),5000),VLOOKUP(H14,N33:R37,H17+1,FALSE)),MIN(B25,16000))","v":6000},null,null,null,null,null,{"$f":"IF(H14<>4,VLOOKUP(H14,N33:R37,H17+1,FALSE),B25)","v":6000},"si \"publique\"",null,null,null,null,1,1,null,null,null,null,null,"Frais admis"]
[null,null,null,null,null,null,null,null,null,null,null,null,null,2,2,null,null,null,null,null,null,"Anerkannte Kosten"]
[]
[null,null,null,null,null,null,null,null,null,null,null,null,null,"Type","Repas domicile","Repas hors domicile","Logement VS","Logement hors VS"]
[null,null,null,null,null,null,null,null,null,null,null,null,null,"Formation",1,2,3,4,"Maximum "]
[null,null,null,null,null,null,null,null,null,null,null,null,null,1,4000,6000,10500,12000,17000]
[null,null,null,null,null,null,null,null,null,null,null,null,null,2,5000,7500,13500,16000,21000]
[null,null,null,null,null,null,null,null,null,null,null,null,null,3,5000,5000,5000,5000,10000]
[null,null,null,null,null,null,null,null,null,null,null,null,null,4,"Montant des frais liés au cours jusqu'à un maximum de 16'000",null,null,null,16000]
[{"$f":"IF($H$6=1,U38,V38)","v":"Situation der Person in Ausbildung"},null,null,null,null,null,null,null,null,null,null,null,null,null,null,null,null,null,null,null,"Situation de la personne en formation","Situation der Person in Ausbildung"]
[]
[{"$f":"IF($H$6=1,U40,V40)","v":"Name"},null,null,null,null,null,null,"Référence",null,null,null,null,null,{"$f":"IF($H$6=1,Q40,R40)","v":"Nein"},0,null,"Non","Nein",null,null,"Nom","Name"]
[null,null,null,null,null,null,null,null,null,null,null,null,null,"Ja",1,null,"Oui","Ja"]
[{"$f":"IF($H$6=1,U42,V42)","v":"Vorname"},null,null,null,null,null,null,null,null,null,null,null,null,null,null,null,null,null,null,null,"Prénom","Vorname"]
[null,null,null,null,null,null,null,null,null,null,null,null,null,"Variable","Formules"]
[{"$f":"IF($H$6=1,U44,V44)","v":"Status"},"Ledig",null,null,null,null,null,{"$f":"VLOOKUP(B44,N58:O65,2,FALSE)","v":1},null,null,null,null,null,"Revenu du requérant (RR)","Saisie manuelle",null,null,null,null,null,"Statut","Status"]
[null,null,null,null,null,null,null,null,null,null,null,null,null,"Revenu du conjoint (RC)","Saisie manuelle"]
[{"$f":"IF($H$6=1,U46,V46)","v":"Kinder des Antragstellers "},null,0,null,null,null,null,"(+ 4'000 /enfant)",null,null,null,null,null,"Revenu brut (RB)","RR+RC",null,null,null,null,null,"Nombre d'enfants à charge","Kinder des Antragstellers "]
[null,null,null,null,null,null,null,null,null,null,null,null,null,"Franchise sur revenu (FR)","Std : 30%*RB mais min : 6'000.- (NIP) et 30'000 (IP)"]
[{"$f":"IF($H$6=1,U48,V48)","v":"Partielle Unabhängigkeit von den Eltern"},null,"Nein",null,null,null,null,{"$f":"VLOOKUP(C48,N40:O41,2,FALSE)","v":0},"0=non | 1=oui",null,null,null,null,null,"Orphelin : 30'000.-",null,null,null,null,null,"Indépendance partielle des parents (IP)","Partielle Unabhängigkeit von den Eltern"]
[{"$f":"IF($H$6=1,U49,V49)","v":"Vervollständigen Sie bitte die nachfolgenden Kriterien gemäss den vor Beginn Ihrer Ausbildung geltenden Angaben:\n- Alter > abgeschlossenes 25. Altersjahr\n- Erstausbildung, die Zugang zum Arbeitsmarkt bietet\n-  Finanzielle Unabhängigkeit während mindestens 2 Jahren\n\n !! Die zuständige Behörde legt fest, ob eine partielle Unabhängigkeit vorliegt oder nicht"},0,0,0,0,0,null,null,null,null,null,null,null,null,"Mariés : 50%*RB mais min : 12'000.- (NIP) et 45'000.- (IP)",null,null,null,null,null,"Vous devez remplir les 3 critères suivants avant le début de votre formation  pour être considéré comme indépendant des parents :\n- Âge > 25 ans révolus\n- 1ère formation donnant accès à un métier terminée\n- Indépendance financière pendant au moins 2 ans (revenu annuel > 30'000.-)\n\n !! Seule l’administration compétente pourra déterminer si l’indépendance partielle est effective ou non","Vervollständigen Sie bitte die nachfolgenden Kriterien gemäss den vor Beginn Ihrer Ausbildung geltenden Angaben:\n- Alter > abgeschlossenes 25. Altersjahr\n- Erstausbildung, die Zugang zum Arbeitsmarkt bietet\n-  Finanzielle Unabhängigkeit während mindestens 2 Jahren\n\n !! Die zuständige Behörde legt fest, ob eine partielle Unabhängigkeit vorliegt oder nicht"]
[]
[null,null,null,null,null,null,null,null,null,null,null,null,null,"Fortune nette (FN)","Saisie manuelle"]
[null,null,null,null,null,null,null,null,null,null,null,null,null,"Revenu Fortune (RF)","5% FN",null,null,null,null,null,null,"In dieses Feld dürfen nur Ziffern eingetragen werden."]
[]
[{"$f":"IF($H$6=1,U54,V54)","v":"Berechnung der persönlichen Ressourcen"},null,null,null,null,null,null,null,null,null,null,null,null,"Ressources personnelles","RB-FR+RF",null,null,null,null,null,"Calcul ressources personnelles","Berechnung der persönlichen Ressourcen"]
[]
[{"$f":"IF($H$6=1,U56,V56) & \"(\" & O56 & \")\"","v":"Einkommen während des Schuljahres (01.07.2020 - 30.06.2021)"},null,null,null,null,null,null,null,null,null,null,null,null,"Revenus durant l'année de formation",{"$f":"IF(MONTH(O10)>=6,\"01.07.\"& YEAR(O10) &\" - \" & \"30.06.\" & YEAR(O10)+1,\"01.07.\"& YEAR(O10)-1 &\" au \" & \"30.06.\" & YEAR(O10))","v":"01.07.2020 - 30.06.2021"},null,null,null,null,null,"Revenus durant l'année de formation ","Einkommen während des Schuljahres "]
[{"$f":"IF($H$6=1,U57,V57)","v":"Bruttoeinkommen der Person in Ausbildung"},null,0,null,null,null,null,null,null,null,null,null,null,null,null,null,null,null,null,null,"Revenu brut de la personne en formation","Bruttoeinkommen der Person in Ausbildung"]
["Unterhaltsbeiträge",null,0,null,null,null,null,null,null,null,null,null,null,{"$f":"IF($H$6=1,Q58,R58)","v":"Ledig"},1,null,"Célibataire","Ledig",null,null,"Pensions alimentaires reçues","Unterhaltsbeiträge"]
["Renten der Person in Ausbildung (AHV-, IV-, Waisenrenten)",null,0,null,null,null,null,null,null,null,null,null,null,"Verheiratet",2,null,"Marié(e) ","Verheiratet",null,null,"Rentes de la personne en formation (Orphelin, AI/AVS, …)","Renten der Person in Ausbildung (AHV-, IV-, Waisenrenten)"]
["Bruttoeinkommen Ehepartners ",null,0,null,null,null,null,null,null,null,null,null,null,"Geschieden ",1,null,"Divorcé(e) ","Geschieden ",null,null,"Revenu brut du conjoint de la personne en formation","Bruttoeinkommen Ehepartners "]
["Bruttoeinkommen",null,{"$f":"SUM(C57:C60)","v":0},null,null,null,null,null,null,null,null,null,null,"Getrennt",1,null,"Séparé(e) ","Getrennt",null,null,"Revenu Brut","Bruttoeinkommen"]
[0,null,null,null,null,null,null,null,null,null,null,null,null,"Verwitwet",1,null,"Veuf(ve)","Verwitwet"]
["Franchise",null,{"$f":"IF(H14=4,0,IF(H44=1,O69,IF(H44=2,O70,O71)))","v":6000},null,null,null,null,null,null,null,null,null,null,"Wiederverheiratet",2,null,"Remarié(e) ","Wiederverheiratet",null,null,"Franchise","Franchise"]
[{"$f":"IF($H$6=1,U64,V64)","v":"Part de la personne au découvert de la famille"},null,{"$f":"C161+D161","v":0},null,null,null,null,null,null,null,null,null,null,{"$f":"IF($H$6=1,Q65,R65)","v":"Eingetragene Partnerschaft"},2,null,null,null,null,null,"Part de la personne au découvert de la famille","Part de la personne au découvert de la famille"]
[{"$f":"IF($H$6=1,U65,V65)","v":"Revenus calculés"},null,{"$f":"IF(H14=4,0,IF(H44=1,P69,IF(H44=2,P70,P71)))","v":-6000},null,null,null,null,null,null,null,null,null,null,{"$f":"IF($H$6=1,Q66,R66)","v":" Vollwaise (Ledig)"},3,null,"Partenariat enregistré","Eingetragene Partnerschaft",null,null,"Revenus calculés","Revenus calculés"]
["Persönliches Einkommen",null,{"$f":"IF(H14=4,C61,IF(C65>0,ROUNDDOWN(C65,-2),0))","v":0},null,null,null,null,null,null,null,null,null,null,null,null,null,"Orphelin de père et de mère (Célibataire)"," Vollwaise (Ledig)",null,null,"Revenus personnels","Persönliches Einkommen"]
[0,null,null,null,null,null,null,null,null,null,null,null,null,"Si Orphelin et marié/pacsé  => marié/pacsé"]
[0,null,null,null,null,null,null,null,null,null,null,null,null,null,"Franchise(FR)","RB - FR - Part découvert"]
[0,null,null,null,null,null,null,null,null,null,null,null,null,"Célibataire, Divorcé, Spéaré, Veuf",{"$f":"IF(H48=0,(IF(30%*C61>6000,30%*C61,6000)),(IF(30%*C61>30000,30%*C61,30000)))","v":6000},{"$f":"C61-O69-C64","v":-6000}]
[{"$f":"IF($H$6=1,U70 & \"Taxation \"& O11+1 &\")\",V70 & \"Steuerveranlagung \" & O11+1 &\")\")","v":"Nettovermögen (Rubrik 3500 - Steuerveranlagung 2019)"},null,0,null,null,null,null,null,null,null,null,null,null,"Marié/Partenariat",{"$f":"IF(H48=0,(IF(50%*C61>12000,50%*C61,12000)),(IF(50%*C61>45000,50%*C61,45000)))","v":12000},{"$f":"C61-O70-C64","v":-12000},null,null,null,null,"Fortune nette de la personne en formation (Rubrique 3500 -","Nettovermögen (Rubrik 3500 - "]
["Revenu Fortune ",0.05,{"$f":"C70*B71","v":0},null,null,null,null,null,null,null,null,null,null,"Orphelin de père et de mère (célibataire)",{"$f":"IF(30%*C61>30000,30%*C61,30000)","v":30000},{"$f":"C61-O71-C64","v":-30000},null,null,null,null,"Revenu Fortune ","aaa"]
[]
[]
[]
[{"$f":"IF($H$6=1,U75,V75)","v":"Familiäre Situation der Eltern"},null,null,null,null,null,null,null,null,null,null,null,null,null,null,null,null,null,null,null,"Situation familiale des parents","Familiäre Situation der Eltern"]
[null,null,null,null,null,null,null,null,null,null,null,null,null,"(1=Parents mariés; 2=Mère; 3=Père; 4=Père + Mère)"]
[{"$f":"IF($H$6=1,U77,V77)","v":"Aktuelle familiäre Situation der Eltern"},null,null,null,null,null,null,null,null,null,null,null,null,null,null,null,null,null,null,null,"Situation familiale actuelle des parents","Aktuelle familiäre Situation der Eltern"]
["Miteinander verheiratete Eltern (oder verwitwet)",null,null,null,null,null,null,{"$f":"VLOOKUP(A78,N78:O82,2,FALSE)","v":1},null,null,null,null,null,{"$f":"IF($H$6=1,Q78,R78)","v":"Miteinander verheiratete Eltern (oder verwitwet)"},1,null,"Parents mariés ensemble (ou veuf/veuve)","Miteinander verheiratete Eltern (oder verwitwet)"]
[null,null,null,null,null,null,null,null,null,null,null,null,null,"Nicht miteinander verheiratete/getrennte/geschiedene Eltern mit Obhut bei der Mutter (Vater zahlt Unterhaltsbeitrag)",2,null,"Parents divorcés/séparés/jamais mariés ensemble et droit de garde à la mère (contribution d'entretien versée par le père)","Nicht miteinander verheiratete/getrennte/geschiedene Eltern mit Obhut bei der Mutter (Vater zahlt Unterhaltsbeitrag)"]
[{"$f":"IF($H$6=1,U80,V80)","v":"Ist Ihre Mutter wiederverheiratet ?"},null,"Nein",null,null,null,null,{"$f":"VLOOKUP(C80,N40:O41,2,FALSE)","v":0},null,null,null,null,null,"Nicht miteinander verheiratete/getrennte/geschiedene Eltern mit Obhut beim Vater (Mutter zahlt Unterhaltsbeitrag)",3,null,"Parents divorcés/séparés/jamais mariés ensemble et droit de garde au père (contribution d'entretien versée par la mère)","Nicht miteinander verheiratete/getrennte/geschiedene Eltern mit Obhut beim Vater (Mutter zahlt Unterhaltsbeitrag)",null,null,"Votre mère est-elle remariée ?","Ist Ihre Mutter wiederverheiratet ?"]
["Ist Ihr Vater wiederverheiratet ?",null,"Nein",null,null,null,null,{"$f":"VLOOKUP(C81,N40:O41,2,FALSE)","v":0},null,null,null,null,null,"Nicht miteinander verheiratete/getrennte/geschiedene Eltern mit alternierender Obhut (Eltern zahlen keine Unterhaltsbeiträge)",4,null,"Parents divorcés/séparés/jamais mariés ensemble et droit de garde partagée (pas de contribution d'entretien versée par les parents)","Nicht miteinander verheiratete/getrennte/geschiedene Eltern mit alternierender Obhut (Eltern zahlen keine Unterhaltsbeiträge)",null,null,"Votre père est-il remarié ?","Ist Ihr Vater wiederverheiratet ?"]
[null,null,null,null,null,null,null,null,null,null,null,null,null,"Beide Elternteile verstorben",5,null,"2 parents décédés","Beide Elternteile verstorben"]
[{"$f":"IF($H$6=1,U83,V83)","v":"Berechnung des massgebenden Einkommens der Eltern"},null,null,null,null,null,null,null,null,null,null,null,null,null,null,null,null,null,null,null,"Calcul revenu déterminant des parents","Berechnung des massgebenden Einkommens der Eltern"]
[]
[{"$f":"IF($H$6=1,U85,V85)","v":"Bei den Steuerangaben benötigen Sie die Steuerveranlagung 2018 Ihrer Eltern."},null,null,null,null,null,null,null,null,null,null,null,null,null,null,null,null,null,null,null,{"$f":"\"Les données fiscales sont à compléter sur la base de la taxation \"&O11&\" de vos parents.\"","v":"Les données fiscales sont à compléter sur la base de la taxation 2018 de vos parents."},{"$f":" \"Bei den Steuerangaben benötigen Sie die Steuerveranlagung \"&O11&\" Ihrer Eltern.\"","v":"Bei den Steuerangaben benötigen Sie die Steuerveranlagung 2018 Ihrer Eltern."}]
[{"$f":"IF($H$6=1,U86,V86)","v":"Es müssen nur die Spalten mit einer Überschrift ausgefüllt werden.\nDie entsprechende Rubrik finden Sie in der Klammer (z.B. 2400).\nFalls Sie eine berufsbegleitende Weiterbildung absolvieren, benötigen Sie die Steuerangaben Ihrer Eltern nicht."},null,null,null,null,null,null,null,null,null,null,null,null,null,null,null,null,null,null,null,"Seules les colonnes dont l'entête n'est pas vide doivent être complétées !\nVous trouvez entre parenthèses la rubrique de la taxation (ex: 2400)\nDans le cas de perfectionnement en emploi, il n'est pas utile de saisir les données fiscales des parents.","Es müssen nur die Spalten mit einer Überschrift ausgefüllt werden.\nDie entsprechende Rubrik finden Sie in der Klammer (z.B. 2400).\nFalls Sie eine berufsbegleitende Weiterbildung absolvieren, benötigen Sie die Steuerangaben Ihrer Eltern nicht."]
[null,null,null,null,null,null,null,null,null,null,null,null,null,null,null,null,null,null,null,null,"Rubrique","Rubrik"]
[{"$f":"IF($H$6=1,U88,V88)","v":"Beschreibung"},{"$f":"IF($H$6=1,U87,V87)","v":"Rubrik"},{"$f":"IF(OR(H14=4,H78=5),\"\",IF(H78=1,H88,IF(H78=2,H89,IF(H78=3,H90,H90))))","v":"Eltern"},{"$f":"IF(OR(H14=4,H78=5),\"\",IF(H78=4,H89,\"\"))","v":""},null,null,null,{"$f":"IF($H$6=1,Q88,R88)","v":"Eltern"},null,null,null,null,null,"Variable","Formules",null,"Parents","Eltern",null,null,"Description","Beschreibung"]
[{"$f":"IF($H$6=1,U89,V89)","v":"Nettoeinkommen"},"(2400)",0,0,null,null,null,{"$f":"IF($H$6=1,Q89,R89)","v":"Mutter"},null,null,null,null,null,"Bâtiment privés (BP)","T2920+T2922",null,"Mère","Mutter",null,null,"Revenu net","Nettoeinkommen"]
["Vermögne - Total Aktiven","(3500)",0,0,null,null,null,{"$f":"IF($H$6=1,Q90,R90)","v":"Vater"},null,null,null,null,null,"Bâtiment privés revalorisé (BPR)","si(BP>100'000 ; 100'000+(BP-100’000)*145% ; BP)",null,"Père","Vater",null,null,"Fortune - Total des actifs","Vermögne - Total Aktiven"]
["Private Gebäude in der Wohngemeinde","(2920)",0,0,null,null,null,null,null,null,null,null,null,"Fortune revalorisée brute (FRB)","T3500-BP+BPR",null,null,null,null,null,"Bâtiment privés sur la commune de domicile","Private Gebäude in der Wohngemeinde"]
["Private Gebäude ausserhalb der Wohngemeinde","(2922)",0,0,null,null,null,null,null,null,null,null,null,"Fortune revalorisée nette (FRN)","FRB - T4000",null,null,null,null,null,"Bâtiment privés sur d'autres communes","Private Gebäude ausserhalb der Wohngemeinde"]
[0,"BP Total",{"$f":"C91+C92","v":0},{"$f":"D91+D92","v":0},null,null,null,null,null,null,null,null,null,"Revenu fortune (RF)","si(FRN>0; 5% * FRN; 0)"]
["Total Abzüge","(4000)",0,0,null,null,null,null,null,null,null,null,null,null,null,null,null,null,null,null,"Dette - Total des dettes et de la déduction forfaitaire","Total Abzüge"]
["Säule 3a - Steuerpflichtiger","(2210)",0,0,null,null,null,null,null,null,null,null,null,"Pilier 3a calc (P3C)","T2210+T2220",null,null,null,null,null,"Pillier 3a  - Contribuable","Säule 3a - Steuerpflichtiger"]
["Säule 3a - Ehefrau","(2220)",0,0,null,null,null,null,null,null,null,null,null,"Pilier 3a admis (P3A)","SI(ET(T2210>0;T2220>0);Max légal*2;Max légal)",null,null,null,null,null,"Pillier 3a  - Conjoint","Säule 3a - Ehefrau"]
[0,"P3C Total",{"$f":"C95+C96","v":0},{"$f":"D95+D96","v":0},null,null,null,null,null,null,null,null,null,"Pilier 3a (P3)","si(P3C>P3A;P3A;P3C)"]
[0,"P3A",{"$f":"IF(AND(C95>0,C96>0),2*H98,H98)","v":6768},{"$f":"IF(AND(D95>0,D96>0),2*H98,H98)","v":6768},null,null,null,6768]
[0,"P3",{"$f":"IF(C97>C98,C98,C97)","v":0},{"$f":"IF(D97>D98,D98,D97)","v":0},null,null,null,null,null,null,null,null,null,"Revenu fortune immobilière (RFI)","T1110+T1120+T1130"]
["Liegenschaften im Wallis","(1110)",0,0,null,null,null,null,null,null,null,null,null,"Revenu fortune immobilière négatif (RFIN)","si(RFI<0;-RFI;0)",null,null,null,null,null,"Immeuble en Valais","Liegenschaften im Wallis"]
["Liegenschaften gelegen in einem anderen Schweizer Kanton","(1120)",0,0,null,null,null,null,null,null,null,null,null,null,null,null,null,null,null,null,"Immeuble sis dans un autre canton","Liegenschaften gelegen in einem anderen Schweizer Kanton"]
["Liegenschaften gelegen im Ausland","(1130)",0,0,null,null,null,null,null,null,null,null,null,"Revenu + Fortune acquis à l'étranger","Ajustement manuel par l’utilisateur",null,null,null,null,null,"Immeuble sis à l'étranger","Liegenschaften gelegen im Ausland"]
[0,"RFI",{"$f":"C100+C101+C102","v":0},{"$f":"D100+D101+D102","v":0}]
["Bezahlte Unterhaltsbeiträge","(2531)",0,0,null,null,null,null,null,null,null,null,null,"Prestations en capital reçues (PCR)","T1010+T1020",null,null,null,null,null,"Pensions alimentaires versées","Bezahlte Unterhaltsbeiträge"]
["Kapitalleistungen bezogen - Steuerpflichtiger","(1010)",0,0,null,null,null,null,null,null,null,null,null,null,null,null,null,null,null,null,"Prestations en capital - Contribuable","Kapitalleistungen bezogen - Steuerpflichtiger"]
["Kapitalleistungen bezogen - Ehefrau","(1020)",0,0,null,null,null,null,null,null,null,null,null,"Revenu déterminant (RD)","T2400+RF+P3+RFIN-T2531-PCR",null,null,null,null,null,"Prestations en capital - Conjoint","Kapitalleistungen bezogen - Ehefrau"]
[null,"PCR",{"$f":"C105+C106","v":0},{"$f":"D105+D106","v":0}]
[]
["Bâtiment privés revalorisé (BPR)",null,{"$f":"IF(C93>100000, 100000+(C93-100000)*145%, C93)","v":0},{"$f":"IF(D93>100000, 100000+(D93-100000)*145%, D93)","v":0}]
["Fortune revalorisée brute (FRB)",null,{"$f":"C90-C93+C109","v":0},{"$f":"D90-D93+D109","v":0},null,null,null,{"$f":"IF(OR(H14=2,H14=3),IF(OR(C110>1000000,D110>1000000),1,0),0)","v":0},"1=  formation tertiraire et FRB >1'000'000"]
["Fortune revalorisée nette (FRN)",null,{"$f":"C110-C94","v":0},{"$f":"D110-D94","v":0}]
[]
["Revenu fortune (RF)",null,{"$f":"IF(C111>0,5%*C111,0)","v":0},{"$f":"IF(D111>0,5%*D111,0)","v":0}]
["Revenu fortune immobilière négatif (RFIN)",null,{"$f":"IF(C103<0,-C103,0)","v":0},{"$f":"IF(D103<0,-D103,0)","v":0}]
[]
["Calcul du Revenu Déterminant"]
[null,"RN",{"$f":"C89","v":0},{"$f":"D89","v":0}]
[null,"+RF",{"$f":"C113","v":0},{"$f":"D113","v":0}]
[null,"+P3",{"$f":"C99","v":0},{"$f":"D99","v":0}]
[null,"+RFIN",{"$f":"C114","v":0},{"$f":"D114","v":0}]
[null,"-PA",{"$f":"C104","v":0},{"$f":"D104","v":0}]
[null,"-PCR",{"$f":"C107","v":0},{"$f":"D107","v":0}]
[null,null,{"$f":"C117+C118+C119+C120-C121-C122","v":0},{"$f":"D117+D118+D119+D120-D121-D122","v":0}]
[]
["Revenu déterminant",null,{"$f":"IF(C88=\"\",0,ROUNDDOWN(C123,-2))","v":0},{"$f":"IF(D88=\"\",0,ROUNDDOWN(D123,-2))","v":0},null,null,null,{"$f":"IF(OR(C125>180000,D125>180000),1,0)","v":0},"0= < 180'000 | 1= >180'000",null,null,null,null,null,null,null,null,null,null,null,"Revenu déterminant","Massgebendes Einkommen der Eltern"]
[]
[]
[{"$f":"IF($H$6=1,U128,V128)","v":"Zusammensetzung der Familie nach Haushalt"},null,null,null,null,null,null,null,null,null,null,null,null,null,null,null,null,null,null,null,"Composition de la famille par ménage","Zusammensetzung der Familie nach Haushalt"]
[]
[{"$f":"IF($H$6=1,U130,V130)","v":"Anzahl im Haushalt lebende Personen\nEs müssen folgende Personen berücksichtigt werden:\n- Eltern (inkl. Schwiegereltern)\n- minderjährige Kinder\n- volljährige Kinder in Ausbildung, auch wenn diese einen eigenen Wohnsitz haben\n\nVergessen Sie nicht, sich selbst in die Zahl der Kinder in Ausbildung miteinzuschliessen!\n\nVolljährige Kinder, die nicht in Ausbildung sind, müssen nicht erwähnt werden.\n\nDie Zahl der Personen muss nur in die Spalten mit einer Überschrift eingetragen werden.\n\na) Bei miteinander verheirateten Eltern muss nur eine Spalte ausgefüllt werden.\n\nb) Sind die Eltern getrennt/geschieden/nicht miteinander verheiratet und zahlt ein Elternteil Unterhaltsbeiträge für die Person in Ausbildung, muss nur die Spalte für jenen Elternteil ausgefüllt werden, der keinen Beitrag zahlt.\n\nc) Sind die Eltern getrennt/geschieden/nicht miteinander verheiratet ohne dass ein Unterhaltsbeitrag gezahlt wird, müssen die Spalten für beide Elternteile ausgefüllt werden. In diesem Fall tragen Sie die Anzahl Kinder (gemeinsame Kinder Ihrer Eltern, Sie eingeschlossen) bei einem Elternteil unter «Kinder im Vorschul- oder Schulalter» bzw. «Kinder in postobligatorischer Ausbildung» ein und halten diese Zahl beim anderen Elternteil unter «beim anderen Elternteil lebende Geschwister» fest.\n"},0,0,0,0,0,null,null,null,null,null,null,null,null,null,null,null,null,null,null,"Nombre de personnes dans le ménage.\nLes personnes qui doivent être prise en compte sont :\n- Les parents (incl. les beaux-parents)\n- Les enfants mineurs\n- Les enfants majeurs en formation post-obligatoire, y compris ceux qui ont leur propre domicile légal.\n\nVeuillez faire attention à ne pas oublier de vous inclure dans le nombre d'enfants en formation !\n\nPar conséquent, les enfants majeurs qui ne sont pas en formation ne doivent pas être mentionnés.\n\nLe nombre de personnes est à compléter uniquement dans les colonnes dont l'entête n'est pas vide.\n\na) Lorsque les parents sont mariés ensemble, une seule colonne doit être complétée.\n\nb) Lorsque les parents sont divorcés/séparés/jamais mariés ensemble, et qu'une contribution d'entretien est versée par l'un des parents à la personne en formation, seule la colonne du parent qui ne verse pas de contribution doit être complétée.\n\nc) Lorsque les parents sont divorcés/séparés/jamais mariés ensemble, et qu'aucune contribution d'entretien n'est versée, les colonnes des 2 parents doivent être complétées. Dans ce cas, les frères et soeurs (enfants en commun de vos parents, vous y compris) doivent être mentionnés chez l'un des parents dans les \"'Enfants en âge préscolaire ou en âge de scolarité obligatoire \" ou dans les \"Enfants en formation post-obligatoire\" et chez l'autre dans les \"Frères et soeurs vivant chez l'autre parent\".","Anzahl im Haushalt lebende Personen\nEs müssen folgende Personen berücksichtigt werden:\n- Eltern (inkl. Schwiegereltern)\n- minderjährige Kinder\n- volljährige Kinder in Ausbildung, auch wenn diese einen eigenen Wohnsitz haben\n\nVergessen Sie nicht, sich selbst in die Zahl der Kinder in Ausbildung miteinzuschliessen!\n\nVolljährige Kinder, die nicht in Ausbildung sind, müssen nicht erwähnt werden.\n\nDie Zahl der Personen muss nur in die Spalten mit einer Überschrift eingetragen werden.\n\na) Bei miteinander verheirateten Eltern muss nur eine Spalte ausgefüllt werden.\n\nb) Sind die Eltern getrennt/geschieden/nicht miteinander verheiratet und zahlt ein Elternteil Unterhaltsbeiträge für die Person in Ausbildung, muss nur die Spalte für jenen Elternteil ausgefüllt werden, der keinen Beitrag zahlt.\n\nc) Sind die Eltern getrennt/geschieden/nicht miteinander verheiratet ohne dass ein Unterhaltsbeitrag gezahlt wird, müssen die Spalten für beide Elternteile ausgefüllt werden. In diesem Fall tragen Sie die Anzahl Kinder (gemeinsame Kinder Ihrer Eltern, Sie eingeschlossen) bei einem Elternteil unter «Kinder im Vorschul- oder Schulalter» bzw. «Kinder in postobligatorischer Ausbildung» ein und halten diese Zahl beim anderen Elternteil unter «beim anderen Elternteil lebende Geschwister» fest.\n"]
[]
[]
[null,null,{"$f":"C88","v":"Eltern"},{"$f":"D88","v":""},null,null,null,null,null,null,null,null,null,"Tabelle \"Besoins minimaux\"",null,null,null,null,null,null,null,null,null,""]
[{"$f":"IF($H$6=1,U134,V134)","v":"Anzahl Eltern"},null,0,0,null,null,null,null,null,null,null,null,null,"Nbre personne","Besoins minimaux",null,null,null,null,null,"Nombre de parents ","Anzahl Eltern"]
["Anzahl der unterhaltspflichtigen Kindern",null,0,0,null,null,null,null,null,null,null,null,null,1,38000,null,null,null,null,null,"Nombre d'enfants en âge préscolaire ou en âge de scolarité obligatoire ","Anzahl der unterhaltspflichtigen Kindern"]
["Anzahl Kinder in post-obligatorischer Ausbildung",null,0,0,null,null,null,null,null,null,null,null,null,2,50000,null,null,null,null,null,"Nombre d'enfants en formation post obligatoire ","Anzahl Kinder in post-obligatorischer Ausbildung"]
["Nombre total de personne à prendre en compte dans le ménage",null,{"$f":"SUM(C134:C136)","v":0},{"$f":"SUM(D134:D136)","v":0},null,null,null,null,null,null,null,null,null,3,60000,null,null,null,null,null,"Nombre total de personne à prendre en compte dans le ménage","Anzahl der Personen im Haushalt"]
[null,null,null,null,null,null,null,null,null,null,null,null,null,4,69000]
["Nombre total d'enfants à charge (incl. PDL)",null,{"$f":"C135+C136","v":0},{"$f":"D135+D136","v":0},null,null,null,null,null,null,null,null,null,5,78000]
["Nombre total d'enfants en formation (incl. PDL)",null,{"$f":"C136","v":0},{"$f":"D136","v":0},null,null,null,1800,null,null,null,null,null,6,86000]
[null,null,null,null,null,null,null,null,null,null,null,null,null,7,94000]
[{"$f":"IF($H$6=1,U142,V142)","v":"Anzahl beim anderen Elternteil lebende Geschwister (keine Unterhaltszahlungen durch die Eltern) "},null,0,0,null,null,null,null,null,null,null,null,null,8,102000,null,null,null,null,null,"Nombre de frères et soeurs vivant chez l'autre parent \n(pas de contribution versée par les parents aux enfants) ","Anzahl beim anderen Elternteil lebende Geschwister (keine Unterhaltszahlungen durch die Eltern) "]
["Total des parts",null,{"$f":"C139+C142","v":0},{"$f":"D139+D142","v":0},null,null,null,null,null,null,null,null,null,9,110000]
[null,null,null,null,null,null,null,null,null,null,null,null,null,10,118000]
["Contribution des parents",null,null,null,null,null,null,null,null,null,null,null,null,11,126000]
[null,null,null,null,null,null,null,null,null,null,null,null,null,12,134000]
["Montants de charges",null,{"$f":"VLOOKUP(C137,$N$134:$O$150,2,FALSE)","v":0},{"$f":"IF(ISNA(VLOOKUP(D137,$N$134:$O$150,2,FALSE)),0,VLOOKUP(D137,$N$134:$O$150,2,FALSE))","v":0},null,null,null,null,null,null,null,null,null,13,142000]
["Supplément enfants en formation",null,{"$f":"C140*H140","v":0},{"$f":"D140*H140","v":0},null,null,null,null,null,null,null,null,null,14,150000]
["Total montants de charges",null,{"$f":"SUM(C147:C148)","v":0},{"$f":"SUM(D147:D148)","v":0},null,null,null,null,null,null,null,null,null,15,158000]
[null,null,null,null,null,null,null,null,null,null,null,null,null,0,0]
["Solde disponible",null,{"$f":"C125-C149","v":0},{"$f":"D125-D149","v":0}]
[]
["Réduction contribution (50% si famille recomposée)",null,{"$f":"IF(OR(C88=\"Mère\",C88=\"Mutter\"),IF(H80=1,\"Oui\",\"Non\"),IF(OR(C88=\"Père\",C88=\"Vater\"),IF(H81=1,\"Oui\",\"Non\"),\"Non\"))","v":"Non"},{"$f":"IF(OR(D88=\"Mère\",D88=\"Mutter\"),IF(H80=1,\"Oui\",\"Non\"),\"Non\")","v":"Non"},null,null,null,"0=non | 1=oui"]
[]
["Contribution totale des parents",null,{"$f":"IF(C153=\"Oui\",ROUND(C151/2/50,0)*50,ROUND(C151/50,0)*50)","v":0},{"$f":"IF(D133=\"\",0,IF(D153=\"Oui\",ROUND(D151/2/50,0)*50,ROUND(D151/50,0)*50))","v":0}]
[]
["Contribution par enfant ",null,{"$f":"IF(H14=4,0,ROUNDDOWN(IF(H48=1,0,IF(C143=0,0,IF(C155/C143>0,C155/C143,0))),-2))","v":0},{"$f":"IF(H14=4,0,IF(H48=1,0,IF(D143=0,0,IF(D155/D143>0,D155/D143,0))))","v":0},null,null,null,"(0 si IP, Indépendant des parents)"]
["Contribution par enfant avec coefficient",null,{"$f":"IF(C157>0,ROUNDDOWN(C155/C143*O158,-2),C157)","v":0},{"$f":"IF(D157>0,ROUNDDOWN(D155/D143*O158,-2),D157)","v":0},null,null,null,null,null,null,null,null,null,"Coefficient de comtribution des parent",0.8]
[]
["Nombre de personnes dans la famille",null,{"$f":"C134+C143","v":0},{"$f":"D134+D143","v":0}]
["Part au découvert de la famille",null,{"$f":"IF(H14=4,0,ROUNDUP(IF(H48=1,0,IF(C151>=0,0,-(C151/C160))),-2))","v":0},{"$f":"IF(H14=4,0,ROUNDUP(IF(H48=1,0,IF(D151>=0,0,-(D151/D160))),-2))","v":0}]
[]
[{"$f":"IF($H$6=1,U163,V163)","v":"Betrag der finanziellen Hilfe"},null,null,null,null,null,null,null,null,null,null,null,null,null,null,null,null,null,null,null,"Montant de l'aide financière","Betrag der finanziellen Hilfe"]
[]
["Maximum admis",null,{"$f":"IF(H14=4,B29,B29+4000*C46)","v":6000}]
[]
["Ressources personnelles (Revenus personnels - Part au découvert)",null,{"$f":"IF(C66>=0,C66,0)","v":0}]
[{"$f":"IF(H14=4,\"\",\"5% de la fortune nette\")","v":"5% de la fortune nette"},null,{"$f":"IF(H14=4,\"\",IF(C71>0,ROUNDDOWN(C71,-2),0))","v":0}]
[{"$f":"IF(H14=4,\"Revenu brut maximum admis\",\"Contribution du parent 1\")","v":"Contribution du parent 1"},null,{"$f":"IF(H14=4,IF(H44=2,54000+6000*C46,36000+6000*C46),C158)","v":0}]
[{"$f":"IF(H14=4,\"\",\"Contribution du parent 2\")","v":"Contribution du parent 2"},null,{"$f":"IF(H14=4,\"\",D158)","v":0}]
["Manque identifié",null,{"$f":"IF(H14=4,C169-C167,C165-(SUM(C167:C170)))","v":6000}]
[]
["Nombre de semestre(s)",{"$f":"H23","v":2}]
["Allocation",{"$f":"IF(B173=1,\"(1 semestre\",\"\")","v":""},{"$f":"IF(H14=4,IF(C171>0,C165,0),IF(AND(H48=1,H125=1),0,IF(B173=1,ROUND(IF(C171>0,C171/2,0),-2),ROUND(IF(C171>0,C171,0),-2))))","v":6000},"Montants accordés",null,null,null,null,null,null,null,null,null,1,{"$f":"IF($H$6=1,Q174,R174)","v":"Gestützt auf die von Ihnen gemachten Angaben, kann Ihnen ein Ausbildungsbeitrag in Form eines Stipendiums gewährt werden:"},null,"Sur la base des indications fournies, une allocation de formation sous forme de bourse pourrait vous être allouée :","Gestützt auf die von Ihnen gemachten Angaben, kann Ihnen ein Ausbildungsbeitrag in Form eines Stipendiums gewährt werden:"]
["Bourse",{"$f":"IF(H110=0,IF(H14=4,0%,IF(H48=1,1/3,IF(H14=1,100%,80%))),IF(H48=1,1/3,0%))","v":1},{"$f":"C174*B175","v":6000},{"$f":"IF(ROUND(C175/25,0)*25<500,0,ROUND(C175/25,0)*25)","v":6000},"francs",null,null,{"$f":"IF(AND(D175>0,D176>0),3,IF(D175>0,1,IF(D176>0,2,4)))","v":1},null,{"$f":"D175/2","v":3000},{"$f":"ROUNDDOWN(C175,-2)","v":6000},{"$f":"IF(ROUND(C175/50,0)*50<500,0,ROUND(C175/50,0)*50)","v":6000},null,2,{"$f":"IF($H$6=1,Q175,R175)","v":"Gestützt auf die von Ihnen gemachten Angaben, kann Ihnen ein Ausbildungsbeitrag in Form eines Darlehens gewährt werden:"},null,"Sur la base des indications fournies, une allocation de formation sous forme de prêt pourrait vous être allouée :","Gestützt auf die von Ihnen gemachten Angaben, kann Ihnen ein Ausbildungsbeitrag in Form eines Darlehens gewährt werden:"]
["Prêt ",{"$f":"IF(H110=0,IF(H14=4,100%,IF(H48=1,2/3,IF(H14=1,0%,20%))),IF(H48=1,2/3,100%))","v":0},{"$f":"C174*B176","v":0},{"$f":"IF(ROUND(C176/25,0)*25<1000,0,ROUND(C176/25,0)*25)","v":0},"francs",null,null,null,null,null,null,null,null,3,{"$f":"IF($H$6=1,Q176,R176)","v":"Gestützt auf die von Ihnen gemachten Angaben, kann Ihnen ein Ausbildungsbeitrag in kombinierter Form eines Stipendiums und eines Darlehens gewährt werden:"},null,"Sur la base des indications fournies, une allocation de formation sous forme de bourse et de prêt pourrait vous être allouée :","Gestützt auf die von Ihnen gemachten Angaben, kann Ihnen ein Ausbildungsbeitrag in kombinierter Form eines Stipendiums und eines Darlehens gewährt werden:"]
[null,null,null,null,null,null,null,null,null,null,null,null,null,4,{"$f":"IF($H$6=1,Q177,R177)","v":"Gestützt auf die von Ihnen gemachten Angaben, kann Ihnen keine Ausbildungshilfe gewährt werden."},null,"Sur la base des indications fournies, aucune aide ne pourrait vous être allouée.","Gestützt auf die von Ihnen gemachten Angaben, kann Ihnen keine Ausbildungshilfe gewährt werden."]
[]
[]
[{"$f":"VLOOKUP(H175,N174:O177,2,FALSE)","v":"Gestützt auf die von Ihnen gemachten Angaben, kann Ihnen ein Ausbildungsbeitrag in Form eines Stipendiums gewährt werden:"}]
[]
[null,{"$f":"IF(OR(H175=1,H175=3),H182,\"\")","v":"Betrag des Stipendiums:"},null,{"$f":"IF(D175<>0,D175,\"\")","v":6000},{"$f":"IF(D175<>0,\"CHF\",\"\")","v":"CHF"},null,null,{"$f":"IF($H$6=1,Q182,R182)","v":"Betrag des Stipendiums:"},null,null,null,null,null,null,null,null,"Montant de la bourse :","Betrag des Stipendiums:",null,null,"Montant de la bourse :","Betrag des Stipendiums:"]
[null,{"$f":"IF(OR(H175=2,H175=3),H183,\"\")","v":""},null,{"$f":"IF(D176<>0,D176,\"\")","v":""},{"$f":"IF(D176<>0,\"CHF\",\"\")","v":""},null,null,{"$f":"IF($H$6=1,Q183,R183)","v":"Betrag des Darlehens:"},null,null,null,null,null,null,null,null,"Montant du prêt :","Betrag des Darlehens:",null,null,"Montant du prêt :","Betrag des Darlehens:",null,"",""]
[]
[]
[{"$f":"IF($H$6=1,U186,V186)","v":"Bitte beachten Sie, dass das errechnete Ergebnis unverbindlich ist und lediglich als Anhaltspunkt dient.\nDa sich die zuständige Behörde bei der Berechnung der Stipendien und Ausbildungsdarlehen auf die vom Antragsteller eingereichten Dokumente (wie Steuerverfügung der Eltern, Einkommen des Antragstellers, Anzahl unterhaltsberechtigter oder sich in Ausbildung befindlicher Kinder) stützt, hat das Ergebnis des Online-Rechners weder für die Kantonsverwaltung noch für die Kommission für Ausbildungsbeiträge eine Verpflichtung zur Folge.\n"},0,0,0,0,0,null,null,null,null,null,null,null,null,null,null,null,null,null,null,"Ce calcul des bourses et/ou prêt s d’études vous est présenté à titre indicatif !\nIl n'engage en aucun cas l'Administration cantonale, ni la Commission des bourses et prêts d'études, car les bourses et prêts d’études sont calculés par l'autorité compétente sur la base des documents à fournir par le requérant, notamment la taxation définitive des parents, les gains du requérant, le nombre d’enfants à charge et en formation, etc...","Bitte beachten Sie, dass das errechnete Ergebnis unverbindlich ist und lediglich als Anhaltspunkt dient.\nDa sich die zuständige Behörde bei der Berechnung der Stipendien und Ausbildungsdarlehen auf die vom Antragsteller eingereichten Dokumente (wie Steuerverfügung der Eltern, Einkommen des Antragstellers, Anzahl unterhaltsberechtigter oder sich in Ausbildung befindlicher Kinder) stützt, hat das Ergebnis des Online-Rechners weder für die Kantonsverwaltung noch für die Kommission für Ausbildungsbeiträge eine Verpflichtung zur Folge.\n"]
[]
["Remarques : ",null,null,null,null,null,null,null,null,null,null,null,null,null,null,null,null,null,null,null,"Remarques : ","Bemerkungen: "]
[{"$f":"IF($H$6=1,U189,V189)","v":"a) Stipendien unter 500 Franken und Darlehen unter 1'000 Franken werden nicht gewährt.\nb) Bei tertiären Ausbildungen gilt: Beträgt das aufgewertete Bruttovermögen der Eltern über 1'000'000 Franken, wird eine allfällige Hilfe nur in Form eines Darlehens gewährt.\nc) Bei einer von den elterlichen Leistungen partiell unabhängigen Berechnung wird kein Beitrag gewährt, wenn sich das massgebende Einkommen der Eltern auf über 180'000 Franken beläuft.\n"},0,0,0,0,0,null,null,null,null,null,null,null,null,null,null,null,null,null,null,"a) Les bourses inférieures à 500 francs et les prêts inférieurs à 1'000 francs ne sont pas alloués.\nb) Pour les formations tertiaires, lorsque la fortune revalorisée brute des parents est supérieure à 1’000’000 francs, l’aide éventuelle n'est allouée que sous forme de prêt.\nc) En cas de calcul partiellement indépendant des parents, aucune allocation n’est allouée lorsque le revenu déterminant des parents est supérieur à 180’000 francs.","a) Stipendien unter 500 Franken und Darlehen unter 1'000 Franken werden nicht gewährt.\nb) Bei tertiären Ausbildungen gilt: Beträgt das aufgewertete Bruttovermögen der Eltern über 1'000'000 Franken, wird eine allfällige Hilfe nur in Form eines Darlehens gewährt.\nc) Bei einer von den elterlichen Leistungen partiell unabhängigen Berechnung wird kein Beitrag gewährt, wenn sich das massgebende Einkommen der Eltern auf über 180'000 Franken beläuft.\n"]

{"sheet":"Détail des calculs - STD","index":1,"n_rows":119,"n_cols":8,"rows_kept":119,"cut":false,"hidden":true,"merged":[]}
[null,null,null,null,"Sion, le ",{"$f":"TODAY()","v":"2020-06-23"}]
["Détail des calculs"]
[]
["Année scolaire",null,{"$f":"Calcul!B6","v":"2020/2021"}]
[]
["N° Référence",null,{"$f":"Calcul!I40","v":0}]
["Nom - Prénom",null,{"$f":"CONCATENATE(Calcul!B40,\" \",Calcul!B42)","v":" "}]
["Etat civil",null,{"$f":"Calcul!B44","v":"Ledig"}]
[]
[]
["Besoins de la famille ",null,null,null,{"$f":"IF(Calcul!C76=1,\"Parents\",IF(Calcul!C76=2,\"Mère\",IF(Calcul!C76=3,\"Père\",\"Père\")))","v":"Père"},{"$f":"IF(Calcul!C76=4,\"Mère\",\"\")","v":""},null,"Ordonnance"]
["Nombre de parents",null,null,null,{"$f":"Calcul!C134","v":0},{"$f":"Calcul!D134","v":0}]
["Nombre d'enfants à charge",null,null,null,{"$f":"Calcul!C139","v":0},{"$f":"Calcul!D139","v":0}]
["Nombre de personnes dans le ménage",null,null,null,{"$f":"E12+E13","v":0},{"$f":"F12+F13","v":0}]
[]
["Nombre d'enfants en formation post-obligatoire",null,null,null,{"$f":"Calcul!C140","v":0},{"$f":"Calcul!D140","v":0}]
[]
["Besoins admis de la famille ",null,null,null,{"$f":"Calcul!C147","v":0},{"$f":"Calcul!D147","v":0},null,"Annexe II"]
["Supplément de formation (1'800.- / enfants en formation p.-o.)",null,null,null,{"$f":"Calcul!C148","v":0},{"$f":"Calcul!D148","v":0},null,"Art. 7.2"]
["Besoins de la famille",null,null,null,{"$f":"E18+E19","v":0},{"$f":"F18+F19","v":0}]
[]
[{"$f":"CONCATENATE(\"Revenu déterminant des parents   (Base : Taxation \", Calcul!O11, \")\")","v":"Revenu déterminant des parents   (Base : Taxation 2018)"}]
["Revenu net  (2400)",null,null,"+",{"$f":"Calcul!C89","v":0},{"$f":"Calcul!D89","v":0},null,"Art. 6.1"]
["Fortune brute  (3500)",null,null,null,{"$f":"Calcul!C90","v":0},{"$f":"Calcul!D90","v":0}]
["Bâtiment privés  (2920,2922)",null,null,null,{"$f":"Calcul!C93","v":0},{"$f":"Calcul!D93","v":0}]
["Fortune revalorisée brute",null,null,null,{"$f":"Calcul!C110","v":0},{"$f":"Calcul!D110","v":0}]
["Dette  (4000)",null,null,null,{"$f":"Calcul!C94","v":0},{"$f":"Calcul!D94","v":0}]
["Fortune revalorisée nette",null,null,null,{"$f":"Calcul!C111","v":0},{"$f":"Calcul!D111","v":0}]
["Revenu de la fortune (5 % fortune revalorisée nette)",null,null,"+",{"$f":"Calcul!C118","v":0},{"$f":"Calcul!D118","v":0}]
["Pilier 3a  (2210,2220)",null,null,"+",{"$f":"Calcul!C99","v":0},{"$f":"Calcul!D99","v":0}]
["Revenu négatif de la fortune immobilière  (1110,1120,1130)",null,null,"+",{"$f":"Calcul!C114","v":0},{"$f":"Calcul!D114","v":0}]
["Pensions alimentaires versées  (2531)",null,null,"-",{"$f":"Calcul!C104","v":0},{"$f":"Calcul!D104","v":0}]
["Prestations en capital reçues  (1010,1020)",null,null,"-",{"$f":"Calcul!C107","v":0},{"$f":"Calcul!D107","v":0}]
["Revenu déterminant calculé",null,null,null,{"$f":"E23+E29+E30+E31-E32-E33","v":0},{"$f":"F23+F29+F30+F31-F32-F33","v":0}]
[]
["Revenu déterminant",null,null,null,{"$f":"ROUNDDOWN(E34,-2)","v":0},{"$f":"ROUNDDOWN(F34,-2)","v":0}]
[]
["Contribution des parents"]
["Prise en compte des prestations parentales ",null,null,null,{"$f":"IF(E36<180000,IF(Calcul!H48=0,\"Oui\",\"Non\"),IF(Calcul!H48=1,\"Revenu >180'000\",\"Oui\"))","v":"Oui"},{"$f":"E39","v":"Oui"},null,{"$f":"IF(E39=\"Revenu >180'000\",\"Art. 12.3\",\"Art. 12\")","v":"Art. 12"}]
[]
["Solde disponible (Revenu déterminant - Besoins)",null,null,null,{"$f":"E36-E20","v":0},{"$f":"F36-F20","v":0},null,"Art. 7.1"]
["Réduction pour les familles recomposée (50%)",null,null,null,{"$f":"IF(Calcul!C153=1,\"Oui\",\"Non\")","v":"Non"},{"$f":"IF(Calcul!D153=1,\"Oui\",\"Non\")","v":"Non"},null,"Art. 7.4"]
["Contribution totale des parents ",null,null,null,{"$f":"Calcul!C155","v":0},{"$f":"Calcul!D155","v":0}]
[]
["Nombre d'enfant à charge",null,null,null,{"$f":"E13","v":0},{"$f":"F13","v":0}]
["Nombre d'enfants vivant avec l'autre parent à prendre en compte",null,null,null,{"$f":"Calcul!C142","v":0},{"$f":"Calcul!D142","v":0}]
["Total des enfants avec une contribution",null,null,null,{"$f":"E45+E46","v":0},{"$f":"F45+F46","v":0}]
[]
["Contribution par enfant",null,null,null,{"$f":"Calcul!C157","v":0},{"$f":"Calcul!D157","v":0},null,"Art. 7.3"]
[]
[]
["Revenus personnels"]
["Revenus du requérant ",null,null,"+",{"$f":"Calcul!C57","v":0},null,null,"Art. 5"]
["Pensions alimentaires",null,null,"+",{"$f":"Calcul!C58","v":0}]
["Rentes du requérant",null,null,"+",{"$f":"Calcul!C59","v":0}]
["Revenus du conjoint",null,null,"+",{"$f":"Calcul!C60","v":0}]
["Revenus bruts",null,null,null,{"$f":"Calcul!C61","v":0}]
["Franchise",null,null,"-",{"$f":"IF(E57=0,0,Calcul!C63)","v":0}]
["Revenus bruts après franchise",null,null,null,{"$f":"IF(E57=0,0,Calcul!C65)","v":0}]
[]
["Revenus personnels",null,null,null,{"$f":"IF(E59<0,0,ROUNDDOWN(E59,-2))","v":0}]
[]
["Fortune personnelle"]
["Fortune nette ",null,null,null,{"$f":"Calcul!C70","v":0}]
["5% de la fortune nette",null,null,null,{"$f":"Calcul!C71","v":0}]
[]
[]
["Calcul de l'allocation "]
[]
["Formation",null,{"$f":"VLOOKUP(C6,#REF!,10,FALSE)","v":{"$error":"#REF!"}}]
["Lieu de formation",null,{"$f":"VLOOKUP(C6,#REF!,12,FALSE)","v":{"$error":"#REF!"}}]
["Type de formation",null,{"$f":"Calcul!A14","v":"Mittelschulausbildung (Kollegium, FMS, HMS, ...) "}]
["Catégorie de frais",null,{"$f":"Calcul!A17","v":"Mittagessen auswärts"}]
["Nombre de semestres",null,{"$f":"Calcul!B173","v":2}]
[]
["Montant maximum de frais annuels admis ",null,null,null,{"$f":"Calcul!B29","v":6000},null,null,"Annexe I"]
[]
["Nombre d'enfants à charge du(de la) requérant(e )",null,null,null,{"$f":"Calcul!C46","v":0},null,null,"Art.10"]
["Supplément pour enfants à charge (+4'000.- /enfant)",null,null,null,{"$f":"E78*4000","v":0}]
[]
["Montant de frais maximums admis ",null,null,null,{"$f":"Calcul!C165","v":6000},null,null,"Art. 4"]
["Revenus personnels",null,null,"-",{"$f":"E61","v":0}]
["5% de la fortune nette",null,null,"-",{"$f":"IF(E65<0,0,ROUNDDOWN(E65,-2))","v":0}]
["Contribution des parents",null,null,"-",{"$f":"E49","v":0}]
[null,null,null,"-",{"$f":"F49","v":0}]
["Manque identifié",null,null,null,{"$f":"E81-E82-E83-E84-E85","v":6000}]
[]
["Allocation possible",{"$f":"IF(E39=\"Revenu >180'000\",\"Revenu déterminant > 180'000\",IF(C74=1,\"(1 semestre)\",\"\"))","v":""},{"$f":"Calcul!C174","v":6000},null,null,null,null,{"$f":"IF(E39=\"Revenu >180'000\",\"Art. 12.3\",\"\")","v":""}]
[null,null,null,null,"Montants alloués",null,null,{"$f":"IF(E39=\"Non\",\"Art. 12\",\"Art. 8\")","v":"Art. 8"}]
["Bourse",{"$f":"Calcul!B175","v":1},{"$f":"Calcul!C175","v":6000},null,{"$f":"Calcul!D175","v":6000},"francs"]
["Prêt ",{"$f":"Calcul!B176","v":0},{"$f":"Calcul!C176","v":0},null,{"$f":"Calcul!D176","v":0},"francs"]
[]
[]
[{"$f":"IF(H88=\"Art. 12.3\",\"Art. 12.3 : Lorsque le revenu déterminant des parents est > 180'000 francs, aucune aide n'est allouée !\",\"\")","v":""}]
["Les bourses inférieures à 500 francs et les prêts inférieurs à 1'000 francs ne sont pas alloués"]
[]
[]
[]
[]
[]
[]
[null,null,"Montant calculé",null,"Montant alloué"]
["Cas 1 : montant négatif "]
[null,null,"Montant < 0",null,0]
[]
["Cas 2 : Indépendance des prestations parentales "]
[null,"Bourse 1/3","xxxxx",null,"xxxxxx",null,null,"Art. 12"]
[null,"Prêt 2/3","xxxxx",null,"xxxxxx"]
[]
["Cas 3 : Montants forcés"]
[null,"Bourse","xxxxx",null,"xxxxxx"]
[null,"Prêt","xxxxx",null,"xxxxxx"]
[]
["Cas 3 : Formation Secondaire"]
[null,"Bourse 100%","xxxxx",null,"xxxxxx",null,null,"Art. 8"]
[]
["Cas 4 : Formation tertiaire"]
[null,"Bourse 80%","xxxxx",null,"xxxxxx",null,null,"Art. 8"]
[null,"Prêt 20%","xxxxx",null,"xxxxxx"]

{"sheet":"Détail des calculs - PERF","index":2,"n_rows":78,"n_cols":13,"rows_kept":78,"cut":false,"hidden":true,"merged":[[19,7,46,7],[50,0,53,7]]}
[null,null,null,null,"Sion, le ",{"$f":"TODAY()","v":"2020-06-23"}]
["Détail des calculs"]
[]
["Année scolaire",null,{"$f":"Calcul!B6","v":"2020/2021"},null,null,null,null,null,null,null,null,"Célibataire","Ledig"]
[null,null,null,null,null,null,null,null,null,null,null,"Marié(e) ","Verheiratet"]
["N° Référence",null,{"$f":"Calcul!I40","v":0},null,null,null,null,null,null,null,null,"Divorcé(e) ","Geschieden"]
["Nom - Prénom",null,{"$f":"CONCATENATE(Calcul!B40,\" \",Calcul!B42)","v":" "},null,null,null,null,null,null,null,null,"Séparé(e) ","Getrennt"]
["Etat civil",null,{"$f":"Calcul!B44","v":"Ledig"},null,null,null,null,null,null,null,null,"Veuf(ve)","Witwer (Witwe)"]
[null,null,null,null,null,null,null,null,null,null,null,"Remarié(e) ","Wiederverheiratet"]
[null,null,null,null,null,null,null,null,null,null,null,"Partenariat enregistré","Eingetragene Partnerschaft"]
[]
["Calcul de l'allocation "]
[]
["Formation",null,{"$f":"VLOOKUP(C6,#REF!,10,FALSE)","v":{"$error":"#REF!"}},null,null,null,null,null,null,null,null,"Repas de midi à domicile","Mittagessen zuhause"]
["Lieu de formation",null,{"$f":"VLOOKUP(C6,#REF!,12,FALSE)","v":{"$error":"#REF!"}},null,null,null,null,null,null,null,null,"Repas de midi hors domicile","Mittagessen auswärts"]
["Type de formation",null,"Formation professionnelle supérieure",null,null,null,null,null,null,null,null,"Pension et logement hors famille","Unterkunft und Verpflegung ausserhalb der Familie"]
["Catégorie de frais",null,{"$f":"Calcul!A14","v":"Mittelschulausbildung (Kollegium, FMS, HMS, ...) "},null,null,null,null,null,null,null,null,"Pension et logement  hors canton","Unterkunft und Verpflegung ausserhalb des Kantons"]
["Nombre de semestres",null,{"$f":"Calcul!B173","v":2},null,null,null,null,null,null,null,null,"Formation à distance (tertiaire)","Fernstudium"]
[null,null,null,null,null,null,null,null,null,null,null,"Perfectionnement en emploi","Berufsbegleitende Weiterbildung"]
["Montant maximum de frais annuels admis ",null,null,null,{"$f":"Calcul!B29","v":6000},null,null,"Art. 14"]
[null,null,"Frais de repas",{"$f":"Calcul!B24","v":0}]
[null,null,"Frais de déplacement",{"$f":"Calcul!#REF!","v":{"$error":"#REF!"}}]
[null,null,"Frais de logement",{"$f":"Calcul!#REF!","v":{"$error":"#REF!"}}]
[null,null,"Inscription/Taxes/Ecolage",{"$f":"Calcul!#REF!","v":{"$error":"#REF!"}}]
[]
["Revenu brut maximum",null,null,null,{"$f":"IF(Calcul!H44=2,54000,36000)","v":36000}]
["Nombre d'enfants à charge du(de la) requérant(e )",null,null,{"$f":"Calcul!C46","v":0}]
["Supplément pour enfants à charge (+6'000.- /enfant)",null,null,null,{"$f":"D27*6000","v":0}]
["Revenu brut maximum admis",null,null,null,{"$f":"E26+E28","v":36000}]
[]
["Revenu brut annuel"]
["Revenu Requérant",null,null,null,{"$f":"Calcul!C57","v":0}]
["Revenu Conjoint",null,null,null,{"$f":"Calcul!C60","v":0}]
["Revenu brut  annuel",null,null,null,{"$f":"E32+E33","v":0}]
[]
[]
["Revenu brut maximum admis",null,null,null,{"$f":"E29","v":36000}]
["Revenus brut annuel",null,null,null,{"$f":"Calcul!C61","v":0}]
["Manque identifié",null,null,null,{"$f":"E29-E38","v":36000}]
[]
[]
["Montant de frais maximums admis ",null,null,null,{"$f":"Calcul!B29","v":6000}]
["Allocation possible",null,null,null,{"$f":"IF(E39>0,E42,0)","v":6000}]
[]
[null,{"$f":"IF(C18=1,\"(1 Semester)\",\"\")","v":""}]
[null,null,null,null,"Montants alloués"]
["Prêt ",{"$f":"Calcul!B176","v":0},{"$f":"E43","v":6000},null,{"$f":"E43","v":6000},"francs"]
[]
[]
[]
["Aucune aide n'est accordée si le requérant dispose d'un revenu brut supérieur à 36'000 francs acquis pendant l'année pour laquelle il demande une aide. \nPour les personnes mariées, le revenu brut du couple ne doit pas dépasser 54'000 francs.\nCes deux limites sont augmentées de 6'000 francs par enfant à charge."]
[]
[]
[]
[]
[null,null,null," "]
[]
[]
[]
[]
[null,null,"Montant calculé",null,"Montant alloué"]
["Cas 1 : montant négatif "]
[null,null,"Montant < 0",null,0]
[]
["Cas 2 : Indépendance des prestations parentales "]
[null,"Bourse 1/3","xxxxx",null,"xxxxxx",null,null,"Art. 12"]
[null,"Prêt 2/3","xxxxx",null,"xxxxxx"]
[]
["Cas 3 : Montants forcés"]
[null,"Bourse","xxxxx",null,"xxxxxx"]
[null,"Prêt","xxxxx",null,"xxxxxx"]
[]
["Cas 3 : Formation Secondaire"]
[null,"Bourse 100%","xxxxx",null,"xxxxxx",null,null,"Art. 8"]
[]
["Cas 4 : Formation tertiaire"]
[null,"Bourse 80%","xxxxx",null,"xxxxxx",null,null,"Art. 8"]
[null,"Prêt 20%","xxxxx",null,"xxxxxx"]